bitfinex-derivatives/quotes_BTCF0:USTF0_20250620
["timestamp","ask_amount","ask_price","bid_price","bid_amount"]
[1750452086985,0.13581035,103720.0,103710.0,1.41624995]
[1750452088586,0.13581035,103720.0,103710.0,1.81229847]
[1750452089484,0.13581035,103720.0,103710.0,1.41624995]
[1750452096794,0.5322876,103720.0,103710.0,1.8127272]
[1750452097785,0.47456343,103720.0,103710.0,1.8127272]
[1750452101601,0.07808618,103720.0,103710.0,1.8127272]
[1750452101787,0.39647725,103720.0,103710.0,1.8127272]
[1750452105991,0.47436792,103720.0,103710.0,1.8127272]
[1750452107899,0.53224396,103720.0,103710.0,1.8127272]
[1750452112106,0.47436792,103720.0,103710.0,1.8127272]
[1750452112708,0.53224515,103720.0,103710.0,1.8127272]
[1750452113208,0.53224515,103720.0,103710.0,1.4519272]
[1750452113407,0.53224515,103720.0,103710.0,1.8127272]
[1750452118012,0.1357679,103720.0,103710.0,1.8127272]
[1750452118419,0.53224515,103720.0,103710.0,1.8127272]
[1750452120412,0.1357679,103720.0,103710.0,1.8102072]
[1750452122217,0.07789067,103720.0,103710.0,1.8102072]
[1750452122410,0.45435448,103730.0,103720.0,0.1928106]
[1750452122610,0.64714658,103730.0,103720.0,1.01318785]
[1750452122810,0.45435448,103730.0,103720.0,1.01318785]
[1750452123211,0.45435448,103730.0,103720.0,0.6167106]
[1750452123410,0.45435448,103730.0,103720.0,1.01318785]
[1750452123613,0.45435448,103730.0,103720.0,1.02277426]
[1750452123912,0.45535448,103730.0,103720.0,1.02277426]
[1750452124117,0.45735448,103730.0,103720.0,1.02277426]
[1750452124419,0.65014658,103730.0,103720.0,1.01318785]
[1750452125211,0.45735448,103730.0,103720.0,1.01318785]
[1750452125413,0.53390046,103730.0,103720.0,1.01318785]
[1750452126215,0.56540046,103730.0,103720.0,1.01318785]
[1750452127819,0.16892321,103730.0,103720.0,1.01318785]
[1750452128022,0.36742758,103730.0,103720.0,1.01318785]
[1750452128221,0.39647725,103730.0,103720.0,1.15778655]
[1750452129322,0.47323441,103730.0,103720.0,1.15778655]
[1750452130324,0.07675716,103730.0,103720.0,1.15778655]
[1750452130525,0.39647725,103730.0,103720.0,1.15778655]
[1750452130820,0.72980107,103740.0,103730.0,0.1927921]
[1750452131017,1.13605162,103740.0,103730.0,0.7955121]
[1750452131218,1.16775162,103740.0,103730.0,0.7955121]
[1750452131724,1.0906159,103740.0,103730.0,0.786107]
[1750452132124,1.16875162,103740.0,103730.0,0.786107]
[1750452132518,1.16875162,103740.0,103730.0,1.146907]
[1750452132717,1.0916159,103740.0,103730.0,0.786107]
[1750452133220,1.15897832,103740.0,103730.0,0.786107]
[1750452133423,0.96619022,103740.0,103730.0,0.786107]
[1750452133622,0.07853572,103740.0,103730.0,1.321867]
[1750452133823,0.07679132,103740.0,103730.0,1.76821172]
[1750452134026,0.47326857,103740.0,103730.0,1.80021172]
[1750452134720,0.47286857,103740.0,103730.0,1.80021172]
[1750452134922,0.47326857,103740.0,103730.0,1.80021172]
[1750452136527,0.07679132,103740.0,103730.0,1.80021172]
[1750452137231,0.47326857,103740.0,103730.0,1.80021172]
[1750452138035,0.07679132,103740.0,103730.0,1.80021172]
[1750452142230,0.07639132,103740.0,103730.0,1.40373447]
[1750452142534,0.07639132,103740.0,103730.0,1.80021172]
[1750452142535,0.07679132,103740.0,103730.0,1.80021172]
[1750452142727,0.07639132,103740.0,103730.0,1.80021172]
[1750452143033,0.07679132,103740.0,103730.0,1.80021172]
[1750452143446,0.07679132,103740.0,103730.0,1.89021172]
[1750452143735,0.07579132,103740.0,103730.0,1.89021172]
[1750452143925,0.07579132,103740.0,103730.0,1.89121172]
[1750452144125,0.07579132,103740.0,103730.0,1.89221172]
[1750452145835,0.39727725,103750.0,103740.0,0.1927735]
[1750452145836,0.0008,103750.0,103740.0,0.1927735]
[1750452146137,0.39647725,103770.0,103760.0,0.1927363]
[1750452146328,0.42777725,103770.0,103760.0,1.68717141]
[1750452146536,0.42817725,103770.0,103760.0,1.74967141]
[1750452146834,0.42777725,103770.0,103760.0,1.74967141]
[1750452147135,0.62089505,103770.0,103760.0,1.74967141]
[1750452147335,0.62089505,103770.0,103760.0,1.75067141]
[1750452147522,0.69692079,103770.0,103760.0,1.75067141]
[1750452147923,0.69692079,103770.0,103760.0,1.75167141]
[1750452147924,0.58133871,103770.0,103760.0,1.75167141]
[1750452148123,0.50420299,103770.0,103760.0,1.75167141]
[1750452148626,0.56186755,103770.0,103760.0,1.75167141]
[1750452148828,0.53056755,103770.0,103760.0,1.75167141]
[1750452149429,0.53056755,103770.0,103760.0,1.76144771]
[1750452149835,0.1340903,103770.0,103760.0,2.15792496]
[1750452150028,0.1340903,103770.0,103760.0,2.51872496]
[1750452150229,0.1336903,103770.0,103760.0,2.51872496]
[1750452150429,0.1340903,103770.0,103760.0,2.51872496]
[1750452150735,0.53056755,103770.0,103760.0,2.11235141]
[1750452151041,0.62966755,103770.0,103760.0,2.11235141]
[1750452151230,0.62966755,103770.0,103760.0,1.36591141]
[1750452151429,0.62966755,103770.0,103760.0,2.11235141]
[1750452151833,0.62966755,103770.0,103760.0,2.11275141]
[1750452152932,0.2331903,103770.0,103760.0,1.71627416]
[1750452154439,0.1673903,103770.0,103760.0,1.71627416]
[1750452157036,0.1673903,103770.0,103760.0,2.11238498]
[1750452157942,0.10972574,103770.0,103760.0,2.14258498]
[1750452158246,0.10972574,103770.0,103760.0,1.74647416]
[1750452160245,0.30244344,103770.0,103760.0,1.74647416]
[1750452160441,0.69855426,103770.0,103760.0,0.96983416]
[1750452160650,0.69855426,103770.0,103760.0,0.002]
[1750452160651,1.15766508,103770.0,103760.0,0.002]
[1750452160846,0.1927549,103750.0,103740.0,0.6017532]
[1750452161040,0.58886572,103750.0,103740.0,1.2037132]
[1750452161237,1.10227363,103750.0,103740.0,0.2409532]
[1750452161446,1.10227363,103750.0,103740.0,0.2413532]
[1750452161838,0.70616281,103750.0,103740.0,0.2413532]
[1750452162137,1.10227363,103750.0,103740.0,0.2413532]
[1750452162653,1.10327363,103750.0,103740.0,0.2413532]
[1750452163145,1.10527363,103750.0,103740.0,0.2413532]
[1750452163539,1.10527363,103750.0,103740.0,0.1931734]
[1750452164241,1.10527363,103750.0,103740.0,0.1927734]
[1750452164242,0.34836281,103750.0,103740.0,0.1927734]
[1750452164442,0.34836281,103750.0,103740.0,0.5535734]
[1750452164635,0.34836281,103750.0,103740.0,0.1931734]
[1750452165846,0.74447363,103750.0,103740.0,0.1931734]
[1750452167141,0.74447353,103750.0,103740.0,0.2245734]
[1750452167449,0.34836271,103750.0,103740.0,0.5853734]
[1750452167641,0.34876271,103750.0,103740.0,0.6170734]
[1750452167840,0.2911548,103750.0,103740.0,0.6170734]
[1750452168041,0.2281548,103750.0,103740.0,0.6170734]
[1750452168242,0.0354,103750.0,103740.0,0.6170734]
[1750452168442,0.2281548,103750.0,103740.0,0.6170734]
[1750452170551,0.28576271,103750.0,103740.0,0.2562734]
[1750452170748,0.2281548,103750.0,103740.0,0.6170734]
[1750452171446,0.2281548,103750.0,103740.0,0.2562734]
[1750452171947,0.28576271,103750.0,103740.0,0.2562734]
[1750452172149,0.2281548,103750.0,103740.0,0.2562734]
[1750452172447,0.28576271,103750.0,103740.0,0.2562734]
[1750452172951,0.2281548,103750.0,103740.0,0.6170734]
[1750452173555,0.1961548,103750.0,103740.0,0.6492734]
[1750452173849,0.0034,103750.0,103740.0,0.6492734]
[1750452174049,0.0034,103750.0,103740.0,1.04538422]
[1750452174248,0.003,103750.0,103740.0,1.04538422]
[1750452175053,0.0034,103750.0,103740.0,1.04538422]
[1750452175248,0.003,103750.0,103740.0,1.04538422]
[1750452175559,0.0034,103750.0,103740.0,1.04538422]
[1750452178461,0.1961548,103750.0,103740.0,1.04538422]
[1750452179058,0.1961548,103750.0,103740.0,0.6492734]
[1750452179660,0.59226562,103750.0,103740.0,0.6170734]
[1750452179960,0.62356562,103750.0,103740.0,1.3627134]
[1750452180158,0.68117353,103750.0,103740.0,1.3627134]
[1750452182060,1.92006278,103750.0,103740.0,0.0004]
[1750452182258,0.1927734,103740.0,103730.0,0.2409843]
[1750452182461,0.70796393,103740.0,103730.0,0.2417843]
[1750452182759,0.81388627,103740.0,103730.0,0.2724843]
[1750452182954,0.81388627,103740.0,103730.0,0.2728843]
[1750452184066,0.41777545,103740.0,103730.0,0.2728843]
[1750452184261,0.81388627,103740.0,103730.0,0.3067843]
[1750452185157,0.41777545,103740.0,103730.0,0.3057843]
[1750452185358,0.81588627,103740.0,103730.0,0.3057843]
[1750452185557,0.81688627,103740.0,103730.0,0.3057843]
[1750452187269,0.42077545,103740.0,103730.0,0.3057843]
[1750452187465,0.81688627,103740.0,103730.0,0.3057843]
[1750452188067,0.84708627,103740.0,103730.0,0.3057843]
[1750452189368,0.85684602,103740.0,103730.0,0.3057843]
[1750452189563,0.84708627,103740.0,103730.0,0.3057843]
[1750452190561,0.78940656,103740.0,103730.0,0.3057843]
[1750452190866,0.25354838,103740.0,103730.0,1.06269512]
[1750452191064,0.25354838,103740.0,103730.0,0.6985843]
[1750452191962,0.25394838,103740.0,103730.0,0.6985843]
[1750452193363,0.06117498,103740.0,103730.0,1.09469512]
[1750452193759,0.06077498,103740.0,103730.0,1.09469512]
[1750452193965,0.06117498,103740.0,103730.0,1.09469512]
[1750452194560,0.06017498,103740.0,103730.0,1.09469512]
[1750452194760,0.05777498,103740.0,103730.0,1.09469512]
[1750452195063,0.05817498,103740.0,103730.0,1.09569512]
[1750452197470,0.05817498,103740.0,103730.0,0.6995843]
[1750452197670,0.05817498,103740.0,103730.0,1.09569512]
[1750452199772,0.25094838,103740.0,103730.0,1.09569512]
[1750452200174,0.05817498,103740.0,103730.0,1.09569512]
[1750452200477,0.25094838,103740.0,103730.0,1.09569512]
[1750452202580,0.25094838,103740.0,103730.0,0.6995843]
[1750452203772,0.05817498,103740.0,103730.0,0.6995843]
[1750452205180,0.05817498,103740.0,103730.0,1.09569512]
[1750452206181,0.25094838,103740.0,103730.0,1.09569512]
[1750452206378,0.05817498,103740.0,103730.0,1.09569512]
[1750452209380,0.25094838,103740.0,103730.0,1.09569512]
[1750452210983,0.25094838,103740.0,103730.0,0.6995843]
[1750452211183,0.25094838,103740.0,103730.0,1.09569512]
[1750452211677,0.05817498,103740.0,103730.0,1.09569512]
[1750452224485,0.71766332,103750.0,103740.0,0.21044734]
[1750452224486,0.0008,103750.0,103740.0,0.21044734]
[1750452224688,0.91195433,103760.0,103750.0,0.1927548]
[1750452224886,0.91195433,103760.0,103750.0,0.57695176]
[1750452225088,1.01805948,103760.0,103750.0,0.57695176]
[1750452225983,0.62194866,103760.0,103750.0,0.57695176]
[1750452226195,0.96987298,103760.0,103750.0,0.57695176]
[1750452226495,0.89273726,103760.0,103750.0,0.57695176]
[1750452226992,0.96987298,103760.0,103750.0,0.57695176]
[1750452227393,0.89273726,103760.0,103750.0,0.57695176]
[1750452228395,0.89573726,103760.0,103750.0,0.57695176]
[1750452228990,0.89573726,103760.0,103750.0,0.21615176]
[1750452229696,0.89573726,103760.0,103750.0,0.18335176]
[1750452234790,0.89573726,103760.0,103750.0,0.17394847]
[1750452236199,0.1927548,103750.0,103740.0,1.55606124]
[1750452237201,1.00667661,103760.0,103740.0,1.55606124]
[1750452237497,0.1927548,103750.0,103740.0,1.55606124]
[1750452238093,0.2252548,103750.0,103740.0,1.55606124]
[1750452238601,0.79984225,103750.0,103740.0,0.5535734]
[1750452238800,0.86264225,103750.0,103740.0,0.5535734]
[1750452239000,0.86264225,103750.0,103740.0,0.5545734]
[1750452239299,0.86264225,103750.0,103740.0,0.3618]
[1750452239500,0.86264225,103750.0,103740.0,0.5549734]
[1750452239902,0.86264225,103750.0,103740.0,0.5545734]
[1750452240101,0.86264225,103750.0,103740.0,0.5549734]
[1750452242698,0.40373143,103750.0,103740.0,0.95108422]
[1750452242899,0.26989052,103750.0,103740.0,1.04868422]
[1750452243290,0.26989052,103750.0,103740.0,0.6525734]
[1750452243495,0.27029052,103750.0,103740.0,0.6525734]
[1750452244512,0.66640134,103750.0,103740.0,0.6525734]
[1750452245614,0.27029052,103750.0,103740.0,0.6525734]
[1750452247910,0.25096171,103750.0,103740.0,0.6525734]
[1750452248813,0.6470749,103750.0,103740.0,0.6200734]
[1750452249108,0.7421749,103750.0,103740.0,0.6200734]
[1750452253719,0.6470749,103750.0,103740.0,0.6200734]
[1750452253919,0.6470749,103750.0,103740.0,0.6522734]
[1750452258026,0.58926562,103750.0,103740.0,0.6522734]
[1750452258525,0.1931548,103750.0,103740.0,0.66979537]
[1750452258716,0.1927548,103750.0,103740.0,0.66979537]
[1750452258915,0.1931548,103750.0,103740.0,0.66979537]
[1750452261015,0.58926562,103750.0,103740.0,0.66979537]
[1750452262024,0.1931548,103750.0,103740.0,0.66979537]
[1750452262426,0.58926562,103750.0,103740.0,0.66979537]
[1750452265031,0.1931548,103750.0,103740.0,0.66979537]
[1750452265328,0.58926562,103750.0,103740.0,0.66979537]
[1750452266830,0.5909502,103750.0,103740.0,1.06610452]
[1750452268732,0.5909502,103750.0,103740.0,0.66979537]
[1750452270032,0.5909502,103750.0,103740.0,1.06610452]
[1750452270728,0.5909502,103750.0,103740.0,1.80826452]
[1750452270921,0.98725935,103750.0,103740.0,0.27679537]
[1750452271134,0.6883502,103750.0,103740.0,0.01892197]
[1750452271333,1.63350864,103750.0,103740.0,0.001]
[1750452271526,1.63350864,103750.0,103740.0,0.0014]
[1750452271728,1.63350864,103750.0,103740.0,0.001]
[1750452271927,0.1927733,103740.0,103730.0,0.5543908]
[1750452272128,1.0827916,103740.0,103730.0,0.5543908]
[1750452272328,1.185169,103740.0,103730.0,0.3616]
[1750452272939,0.79048598,103740.0,103730.0,0.3616]
[1750452273235,0.58812534,103740.0,103730.0,0.3616]
[1750452273436,0.58912534,103740.0,103730.0,0.3616]
[1750452273636,0.78189864,103740.0,103730.0,0.5543919]
[1750452274238,0.78189864,103740.0,103730.0,0.3616]
[1750452274734,0.78189864,103740.0,103730.0,0.3608]
[1750452274939,0.78189864,103740.0,103730.0,0.3612]
[1750452275242,0.38544961,103740.0,103730.0,0.553992]
[1750452275433,0.78189864,103740.0,103730.0,0.553992]
[1750452277036,0.38544961,103740.0,103730.0,0.553992]
[1750452277233,0.78189864,103740.0,103730.0,0.553992]
[1750452277837,0.85903436,103740.0,103730.0,0.553992]
[1750452278040,0.78189864,103740.0,103730.0,0.553992]
[1750452284245,0.38544961,103740.0,103730.0,0.616392]
[1750452284446,0.71689864,103740.0,103730.0,0.646892]
[1750452284941,0.29963705,103740.0,103730.0,1.04334103]
[1750452285547,0.30003705,103740.0,103730.0,1.04334103]
[1750452286545,0.30003705,103740.0,103730.0,0.646892]
[1750452287850,0.35780952,103740.0,103730.0,0.646892]
[1750452289446,0.75425855,103740.0,103730.0,0.646892]
[1750452294948,0.75419094,103740.0,103730.0,1.04327342]
[1750452296957,1.15057236,103740.0,103730.0,1.04327342]
[1750452297456,1.15057236,103740.0,103730.0,0.6468919]
[1750452300364,0.30003705,103740.0,103730.0,0.6468919]
[1750452300657,0.75425961,103740.0,103730.0,1.04327332]
[1750452301754,1.09279989,103740.0,103730.0,1.04327332]
[1750452304256,0.30003705,103740.0,103730.0,1.04327332]
[1750452304555,1.09279989,103740.0,103730.0,1.04327332]
[1750452305455,0.69641847,103740.0,103730.0,1.04327332]
[1750452307559,1.09279989,103740.0,103730.0,1.04327332]
[1750452309166,1.09279989,103740.0,103730.0,1.04327332]
[1750452313168,1.09279989,103740.0,103730.0,0.4541]
[1750452313359,1.18186065,103740.0,103730.0,0.5846919]
[1750452313561,1.24626065,103740.0,103730.0,0.5846919]
[1750452314267,1.12399989,103740.0,103730.0,0.98107332]
[1750452314469,0.78548118,103740.0,103730.0,1.04367332]
[1750452314957,0.16512636,103740.0,103730.0,1.04367332]
[1750452315263,0.16512636,103740.0,103730.0,2.62329474]
[1750452315264,0.06234896,103740.0,103730.0,2.62329474]
[1750452315464,0.06274896,103740.0,103730.0,2.62329474]
[1750452315665,0.06234896,103740.0,103730.0,2.62329474]
[1750452315963,0.06274896,103740.0,103730.0,2.62329474]
[1750452316168,0.06274896,103740.0,103730.0,2.37329474]
[1750452316572,0.06174896,103740.0,103730.0,2.37529474]
[1750452316766,0.00388625,103740.0,103730.0,2.37529474]
[1750452317769,0.00188625,103740.0,103730.0,2.37729474]
[1750452318371,0.00188625,103740.0,103730.0,1.98091332]
[1750452319479,0.00188625,103740.0,103730.0,2.37729474]
[1750452322076,0.00188625,103740.0,103730.0,2.18449474]
[1750452326073,0.00188625,103740.0,103730.0,1.3917319]
[1750452326377,0.00188625,103740.0,103730.0,1.78811332]
[1750452326671,0.00188625,103740.0,103730.0,2.18449474]
[1750452326869,0.00188625,103740.0,103730.0,2.23449474]
[1750452327069,0.0008,103750.0,103740.0,0.21025681]
[1750452327273,0.72666863,103760.0,103750.0,0.1927548]
[1750452327474,0.72746863,103760.0,103750.0,1.61183622]
[1750452327976,0.76046863,103760.0,103750.0,1.61183622]
[1750452328178,0.70260592,103760.0,103750.0,1.61183622]
[1750452328378,0.70460592,103760.0,103750.0,1.25103622]
[1750452328574,0.73750592,103760.0,103750.0,0.8546548]
[1750452328873,1.13388734,103760.0,103750.0,0.8218548]
[1750452329081,1.08570304,103760.0,103750.0,0.8218548]
[1750452329280,1.08570304,103760.0,103750.0,1.21823622]
[1750452329478,1.08670304,103760.0,103750.0,1.21823622]
[1750452329676,1.08670304,103760.0,103750.0,1.57903622]
[1750452329874,1.08670304,103760.0,103750.0,1.21823622]
[1750452330077,1.09636702,103760.0,103750.0,1.57903622]
[1750452330578,1.09636702,103760.0,103750.0,0.8218548]
[1750452330979,1.09636702,103760.0,103750.0,1.1826548]
[1750452331176,0.90362682,103760.0,103750.0,0.8218548]
[1750452331385,0.90362682,103760.0,103750.0,1.1826548]
[1750452331882,1.09636292,103760.0,103750.0,0.8218548]
[1750452333276,1.09636292,103760.0,103750.0,1.1826548]
[1750452333574,0.0615464,103760.0,103750.0,1.72079622]
[1750452333776,0.0607464,103760.0,103750.0,1.78289622]
[1750452333975,0.0611464,103760.0,103750.0,1.3865148]
[1750452334180,0.0611464,103760.0,103750.0,1.78289622]
[1750452334382,0.45752782,103760.0,103750.0,1.78289622]
[1750452334878,0.45452782,103760.0,103750.0,1.78289622]
[1750452335081,0.0581464,103760.0,103750.0,1.78289622]
[1750452335285,0.45452782,103760.0,103750.0,1.78289622]
[1750452335581,0.0581464,103760.0,103750.0,1.78289622]
[1750452335885,0.0581464,103760.0,103750.0,1.79263718]
[1750452337078,0.0581464,103760.0,103750.0,1.79239877]
[1750452338083,0.0004,103760.0,103750.0,1.79239877]
[1750452339287,0.40698304,103770.0,103760.0,0.1927362]
[1750452339587,0.50974153,103770.0,103760.0,0.6502362]
[1750452339988,0.46156143,103770.0,103760.0,0.6502362]
[1750452340182,0.23653063,103770.0,103760.0,0.6502362]
[1750452340387,0.13457214,103770.0,103760.0,1.64401921]
[1750452340588,0.13657214,103770.0,103760.0,1.64401921]
[1750452340781,0.13577214,103770.0,103760.0,1.64401921]
[1750452340976,0.13717214,103770.0,103760.0,1.64401921]
[1750452341182,0.13717214,103770.0,103760.0,1.2478762]
[1750452341377,0.32988974,103770.0,103760.0,1.64401921]
[1750452341682,0.13717214,103770.0,103760.0,1.64401921]
[1750452341887,0.13717214,103770.0,103760.0,1.2478762]
[1750452342287,0.13417214,103770.0,103760.0,1.2478762]
[1750452342585,0.13417214,103770.0,103760.0,1.64401921]
[1750452343485,0.8219119,103780.0,103770.0,0.1927176]
[1750452343685,0.89912171,103780.0,103770.0,0.54411624]
[1750452344188,0.76166762,103780.0,103770.0,0.54411624]
[1750452344486,0.76166762,103780.0,103770.0,0.94025925]
[1750452344487,0.07800981,103780.0,103770.0,0.94025925]
[1750452344688,0.07720981,103780.0,103770.0,1.17801925]
[1750452344877,0.57187873,103790.0,103780.0,0.1926991]
[1750452345084,0.2912805,103790.0,103780.0,0.1926991]
[1750452345382,0.10684416,103790.0,103780.0,1.56449357]
[1750452345585,0.001,103790.0,103780.0,1.62779357]
[1750452346086,0.0014,103790.0,103780.0,1.62779357]
[1750452346387,0.001,103790.0,103780.0,1.62779357]
[1750452346589,0.0014,103790.0,103780.0,1.62779357]
[1750452347689,0.0024,103790.0,103780.0,1.23165056]
[1750452347888,0.0024,103790.0,103780.0,1.62779357]
[1750452348088,0.0024,103790.0,103780.0,1.23165056]
[1750452348390,0.0024,103790.0,103780.0,1.62779357]
[1750452349084,0.0024,103790.0,103780.0,1.63727528]
[1750452356395,0.0024,103790.0,103780.0,1.66897528]
[1750452357299,0.002,103790.0,103780.0,1.66897528]
[1750452357504,0.0024,103790.0,103780.0,1.66897528]
[1750452358896,0.0024,103790.0,103780.0,1.27283227]
[1750452359091,0.0024,103790.0,103780.0,1.66897528]
[1750452360198,1e-07,103790.0,103780.0,1.66897528]
[1750452360500,1e-07,103790.0,103780.0,1.98897528]
[1750452361188,0.0008,103810.0,103780.0,1.27283227]
[1750452361502,0.82842204,103820.0,103810.0,0.1926433]
[1750452361695,0.82842204,103820.0,103810.0,1.1508033]
[1750452361891,0.88880268,103820.0,103810.0,1.1508033]
[1750452362210,0.84064268,103820.0,103810.0,1.12887503]
[1750452362396,0.76508433,103820.0,103810.0,1.12887503]
[1750452363398,0.82263153,103820.0,103810.0,1.12887503]
[1750452363797,0.82563153,103820.0,103810.0,1.12887503]
[1750452364397,0.82363153,103820.0,103810.0,1.12887503]
[1750452364597,0.82463153,103820.0,103810.0,1.12887503]
[1750452366491,0.1926433,103810.0,103800.0,0.14152]
[1750452366804,0.1926619,103800.0,103790.0,0.9796889]
[1750452366999,0.65300491,103800.0,103790.0,0.9796889]
[1750452367998,0.65300491,103800.0,103790.0,0.9826889]
[1750452368488,0.65300491,103800.0,103790.0,0.9846889]
[1750452369299,0.65300491,103800.0,103790.0,0.005]
[1750452369602,0.72174366,103800.0,103790.0,0.1976805]
[1750452369793,1.11788667,103800.0,103790.0,0.18514759]
[1750452371699,0.75708667,103800.0,103790.0,0.18514759]
[1750452371902,0.36094366,103800.0,103790.0,0.18514759]
[1750452372097,0.75708667,103800.0,103790.0,0.18514759]
[1750452372301,1.11788667,103800.0,103790.0,0.17574782]
[1750452373301,0.72174366,103800.0,103790.0,0.17574782]
[1750452373506,1.11788667,103800.0,103790.0,0.17574782]
[1750452374004,0.1926805,103790.0,103780.0,0.45762596]
[1750452374200,0.71002269,103790.0,103780.0,0.71226506]
[1750452374395,1.10242269,103790.0,103780.0,0.14152]
[1750452374705,1.14969147,103790.0,103780.0,0.334219]
[1750452374909,0.75354846,103790.0,103780.0,0.334219]
[1750452375208,0.45086783,103790.0,103780.0,0.699019]
[1750452375410,0.16308733,103790.0,103780.0,1.09516201]
[1750452375606,0.05811937,103790.0,103780.0,1.09516201]
[1750452375806,0.05771937,103790.0,103780.0,1.18686201]
[1750452376110,0.25079977,103790.0,103780.0,1.18686201]
[1750452376309,0.05811937,103790.0,103780.0,1.18686201]
[1750452376706,0.06071937,103790.0,103780.0,1.18286201]
[1750452376903,0.06311937,103790.0,103780.0,1.18286201]
[1750452377304,0.06111937,103790.0,103780.0,1.18286201]
[1750452377607,0.05911937,103790.0,103780.0,1.18286201]
[1750452378710,0.05871937,103790.0,103780.0,1.18286201]
[1750452378914,0.05911937,103790.0,103780.0,1.18286201]
[1750452385216,0.0014,103790.0,103780.0,1.18286201]
[1750452385817,0.05911937,103790.0,103780.0,1.18286201]
[1750452386017,0.0014,103790.0,103780.0,1.18286201]
[1750452386218,0.25179987,103790.0,103780.0,1.18286201]
[1750452386717,0.1940805,103790.0,103780.0,1.18286201]
[1750452387313,0.0014,103790.0,103780.0,1.18286201]
[1750452388017,0.25179987,103790.0,103780.0,1.18286201]
[1750452391122,0.25179987,103790.0,103780.0,0.645199]
[1750452391420,0.64794288,103790.0,103780.0,1.384159]
[1750452391716,0.25179987,103790.0,103780.0,1.292459]
[1750452391923,0.25179987,103790.0,103780.0,1.354359]
[1750452392122,0.26143615,103790.0,103780.0,1.354359]
[1750452392320,0.25179987,103790.0,103780.0,1.354359]
[1750452392510,0.05911937,103790.0,103780.0,1.386559]
[1750452392710,0.25179987,103790.0,103780.0,1.386559]
[1750452394117,0.25179987,103790.0,103780.0,1.19386]
[1750452394420,0.25179987,103790.0,103780.0,1.78270201]
[1750452395117,0.25179987,103790.0,103780.0,1.386559]
[1750452395921,0.25179987,103790.0,103780.0,1.025759]
[1750452396427,0.1940805,103790.0,103780.0,1.025759]
[1750452397327,0.20357909,103790.0,103780.0,1.386559]
[1750452397831,0.20357909,103790.0,103780.0,1.025759]
[1750452398027,0.20357909,103790.0,103780.0,1.386559]
[1750452398424,0.5997221,103790.0,103780.0,1.386559]
[1750452398620,0.6319221,103790.0,103780.0,0.0619]
[1750452398826,0.192699,103780.0,103770.0,1.48620574]
[1750452399025,0.1927176,103770.0,103760.0,0.53606372]
[1750452399226,0.64666958,103770.0,103760.0,0.76139982]
[1750452399430,0.67816958,103770.0,103760.0,0.99835982]
[1750452399632,0.62036061,103770.0,103760.0,0.99835982]
[1750452400136,0.6781421,103770.0,103760.0,0.99835982]
[1750452400635,0.6811421,103770.0,103760.0,0.99835982]
[1750452401843,0.6831421,103770.0,103760.0,0.99835982]
[1750452402028,0.7139421,103770.0,103760.0,0.99835982]
[1750452402737,0.7139421,103770.0,103760.0,0.36829982]
[1750452402937,0.42431023,103770.0,103760.0,0.36829982]
[1750452404231,0.82045324,103770.0,103760.0,0.36829982]
[1750452404436,0.82045324,103770.0,103760.0,0.72909982]
[1750452404738,0.82045324,103770.0,103760.0,0.36829982]
[1750452404936,0.36201023,103770.0,103760.0,0.36829982]
[1750452405139,0.36201023,103770.0,103760.0,0.76219982]
[1750452405438,0.36201023,103770.0,103760.0,1.15834283]
[1750452405633,0.16929263,103770.0,103760.0,1.15834283]
[1750452405840,0.005,103770.0,103760.0,1.15834283]
[1750452406039,0.005,103770.0,103760.0,1.46834283]
[1750452406234,0.005,103770.0,103760.0,1.15834283]
[1750452406442,0.0054,103770.0,103760.0,1.15834283]
[1750452407435,0.0024,103770.0,103760.0,1.16034283]
[1750452408032,0.0004,103770.0,103760.0,1.16134283]
[1750452408541,0.0004,103770.0,103760.0,1.54134283]
[1750452408834,0.39499549,103790.0,103780.0,0.192699]
[1750452409026,0.39499549,103790.0,103780.0,0.94964201]
[1750452409231,0.34682089,103790.0,103780.0,1.01284201]
[1750452410036,0.34922089,103790.0,103780.0,1.01284201]
[1750452410540,0.30104629,103790.0,103780.0,1.01284201]
[1750452411240,0.06218149,103790.0,103780.0,1.01284201]
[1750452411438,0.25486189,103790.0,103780.0,1.01284201]
[1750452412133,0.06218149,103790.0,103780.0,1.01284201]
[1750452413932,0.25486199,103790.0,103780.0,0.616699]
[1750452414443,0.25486199,103790.0,103780.0,0.255899]
[1750452415037,0.25486199,103790.0,103780.0,0.616699]
[1750452415234,0.25486199,103790.0,103780.0,0.255899]
[1750452415439,0.25486199,103790.0,103780.0,0.616699]
[1750452415641,0.651005,103790.0,103780.0,0.255899]
[1750452415834,0.683105,103790.0,103780.0,0.616699]
[1750452416548,0.42824301,103790.0,103780.0,0.616699]
[1750452416750,0.62092351,103790.0,103780.0,0.255899]
[1750452416939,0.65332351,103790.0,103780.0,0.255899]
[1750452417645,0.65332351,103790.0,103780.0,0.0632]
[1750452419146,0.192699,103780.0,103770.0,0.6328908]
[1750452419340,0.58884201,103780.0,103770.0,0.6661908]
[1750452419644,0.62064201,103780.0,103770.0,0.6661908]
[1750452420040,0.62064201,103780.0,103770.0,0.6971908]
[1750452420541,0.62064201,103780.0,103770.0,0.6981908]
[1750452420847,0.62064201,103780.0,103770.0,0.6991908]
[1750452421847,0.65274201,103780.0,103770.0,0.6991908]
[1750452422139,0.65274201,103780.0,103770.0,0.3383908]
[1750452422536,0.65274201,103780.0,103770.0,0.2902117]
[1750452422738,0.649499,103780.0,103770.0,0.002]
[1750452422944,1.04564201,103780.0,103770.0,0.002]
[1750452423242,1.04764201,103780.0,103770.0,0.001]
[1750452423637,0.1927176,103770.0,103760.0,0.17264372]
[1750452423838,0.62126061,103770.0,103760.0,0.36537982]
[1750452424144,0.2561176,103770.0,103760.0,0.36577982]
[1750452424339,0.2561176,103770.0,103760.0,0.36537982]
[1750452424646,0.2561176,103770.0,103760.0,0.39787982]
[1750452425551,0.65226061,103770.0,103760.0,0.39787982]
[1750452425843,0.2561176,103770.0,103760.0,0.39787982]
[1750452426040,0.65226061,103770.0,103760.0,0.39887982]
[1750452426931,0.2561176,103770.0,103760.0,0.39787982]
[1750452427142,0.2591176,103770.0,103760.0,0.39787982]
[1750452428544,0.65526061,103770.0,103760.0,0.39787982]
[1750452429447,0.65526061,103770.0,103760.0,0.75867982]
[1750452430142,0.2591176,103770.0,103760.0,0.75867982]
[1750452430347,0.65526061,103770.0,103760.0,0.75867982]
[1750452431749,0.65526061,103770.0,103760.0,0.14284372]
[1750452432236,0.65526061,103770.0,103760.0,0.14244372]
[1750452432437,0.65526061,103770.0,103760.0,0.14284372]
[1750452432733,1.01606061,103770.0,103760.0,0.14284372]
[1750452433343,1.01606061,103770.0,103760.0,0.00136372]
[1750452433548,2.11718131,103770.0,103760.0,0.00136372]
[1750452433748,2.30992531,103770.0,103760.0,0.00096372]
[1750452433939,2.38706103,103770.0,103760.0,0.00136372]
[1750452434139,2.38706103,103770.0,103760.0,0.00096372]
[1750452434547,2.38706103,103770.0,103760.0,0.00136372]